[Event "Titled Tuesday Blitz December 13 Late 2022"]
[White "Sargsyan, Anna M."]
[Black "Sjugirov, Sanan"]
[WhiteFideId "13308130"]
[BlackFideId "4189302"]
[WhiteElo "2284"]
[BlackElo "2613"]
[Result "1/2-1/2"]
[Round "02"]
[TimeControl "180+1"]
[Date "2022.12.13"]
[WhiteClock "0:00:05"]
[BlackClock "0:00:04"]

1. e4 {[%clk 0:02:50]}  c6 {[%clk 0:02:58]} 2. d4 {[%clk 0:02:47]}  d5 {[%clk 0:02:59]} 3. exd5 {[%clk 0:02:48]}  cxd5 {[%clk 0:02:59]} 4. Bd3 {[%clk 0:02:49]}  Nc6 {[%clk 0:02:58]} 5. c3 {[%clk 0:02:49]}  Nf6 {[%clk 0:02:58]} 6. Ne2 {[%clk 0:02:48]}  Bg4 {[%clk 0:02:54]} 7. O-O {[%clk 0:02:44]}  e6 {[%clk 0:02:54]} 8. f3 {[%clk 0:02:44]}  Bh5 {[%clk 0:02:54]} 9. Re1 {[%clk 0:02:21]}  Bd6 {[%clk 0:02:51]} 10. Nd2 {[%clk 0:02:22]}  Bg6 {[%clk 0:02:49]} 11. Nf1 {[%clk 0:02:21]}  O-O {[%clk 0:02:48]} 12. Bf4 {[%clk 0:02:20]}  Rb8 {[%clk 0:02:44]} 13. a4 {[%clk 0:02:18]}  a6 {[%clk 0:02:44]} 14. Qd2 {[%clk 0:02:15]}  Na5 {[%clk 0:02:38]} 15. Rad1 {[%clk 0:02:08]}  b5 {[%clk 0:02:36]} 16. axb5 {[%clk 0:02:06]}  axb5 {[%clk 0:02:37]} 17. Bxd6 {[%clk 0:02:02]}  Qxd6 {[%clk 0:02:37]} 18. b4 {[%clk 0:01:53]}  Bxd3 {[%clk 0:02:28]} 19. Qxd3 {[%clk 0:01:46]}  Nc4 {[%clk 0:02:28]} 20. Ra1 {[%clk 0:01:44]}  Ra8 {[%clk 0:02:27]} 21. Nd2 {[%clk 0:01:42]}  Qc6 {[%clk 0:01:53]} 22. Nb3 {[%clk 0:01:38]}  Rxa1 {[%clk 0:01:53]} 23. Rxa1 {[%clk 0:01:37]}  Ra8 {[%clk 0:01:54]} 24. Rxa8+ {[%clk 0:01:36]}  Qxa8 {[%clk 0:01:55]} 25. Nc5 {[%clk 0:01:32]}  Qa1+ {[%clk 0:01:50]} 26. Kf2 {[%clk 0:01:31]}  h6 {[%clk 0:01:35]} 27. Qc2 {[%clk 0:01:28]}  Ne8 {[%clk 0:01:22]} 28. Nb3 {[%clk 0:01:27]}  Qa3 {[%clk 0:01:18]} 29. Nec1 {[%clk 0:01:22]}  Ned6 {[%clk 0:01:17]} 30. Qa2 {[%clk 0:01:20]}  Qb2+ {[%clk 0:01:10]} 31. Qxb2 {[%clk 0:01:19]}  Nxb2 {[%clk 0:01:11]} 32. Ke1 {[%clk 0:00:57]}  f6 {[%clk 0:01:06]} 33. g3 {[%clk 0:00:52]}  Kf7 {[%clk 0:01:06]} 34. Kd2 {[%clk 0:00:51]}  g5 {[%clk 0:01:02]} 35. Kc2 {[%clk 0:00:48]}  Nbc4 {[%clk 0:01:01]} 36. Nd2 {[%clk 0:00:48]}  Nb6 {[%clk 0:00:50]} 37. Nd3 {[%clk 0:00:45]}  h5 {[%clk 0:00:48]} 38. Nc5 {[%clk 0:00:41]}  g4 {[%clk 0:00:30]} 39. Kd3 {[%clk 0:00:38]}  Nbc4 {[%clk 0:00:25]} 40. fxg4 {[%clk 0:00:30]}  hxg4 {[%clk 0:00:23]} 41. Nxc4 {[%clk 0:00:27]}  Nxc4 {[%clk 0:00:19]} 42. Na6 {[%clk 0:00:18]}  Nd6 {[%clk 0:00:17]} 43. Nc5 {[%clk 0:00:17]}  Nc4 {[%clk 0:00:14]} 44. Na6 {[%clk 0:00:17]}  Ke7 {[%clk 0:00:15]} 45. Nc5 {[%clk 0:00:14]}  e5 {[%clk 0:00:11]} 46. dxe5 {[%clk 0:00:11]}  fxe5 {[%clk 0:00:12]} 47. Nb3 {[%clk 0:00:11]}  Ke6 {[%clk 0:00:11]} 48. Nc5+ {[%clk 0:00:05]}  Kf5 {[%clk 0:00:10]} 49. Na6 {[%clk 0:00:06]}  Nb2+ {[%clk 0:00:04]} 50. Ke3 {[%clk 0:00:05]}  Na4 {[%clk 0:00:04]} 51. Kd3 {[%clk 0:00:04]}  e4+ {[%clk 0:00:04]} 52. Kd4 {[%clk 0:00:04]}  e3 {[%clk 0:00:03]} 53. Kxe3 {[%clk 0:00:04]}  Nxc3 {[%clk 0:00:03]} 54. Kd4 {[%clk 0:00:05]}  Ne2+ {[%clk 0:00:02]} 55. Kxd5 {[%clk 0:00:05]}  Ng1 {[%clk 0:00:02]} 56. Nc7 {[%clk 0:00:05]}  Nf3 {[%clk 0:00:03]} 57. Nxb5 {[%clk 0:00:05]}  Nxh2 {[%clk 0:00:04]} 58. Nd4+ {[%clk 0:00:06]}  Kf6 {[%clk 0:00:04]} 59. b5 {[%clk 0:00:06]}  Ke7 {[%clk 0:00:04]} 60. b6 {[%clk 0:00:06]}  Kd7 {[%clk 0:00:05]} 61. Nc6 {[%clk 0:00:06]}  Kc8 {[%clk 0:00:05]} 62. Ne5 {[%clk 0:00:05]}  Kb7 {[%clk 0:00:05]} 63. Kc5 {[%clk 0:00:06]}  Nf1 {[%clk 0:00:05]} 64. Nxg4 {[%clk 0:00:04]}  Nxg3 {[%clk 0:00:05]} 65. Nf6 {[%clk 0:00:04]}  Nf5 {[%clk 0:00:06]} 66. Nd5 {[%clk 0:00:04]}  Ng3 {[%clk 0:00:05]} 67. Nc3 {[%clk 0:00:04]}  Nf5 {[%clk 0:00:05]} 68. Nb5 {[%clk 0:00:04]}  Ne7 {[%clk 0:00:04]} 69. Nd6+ {[%clk 0:00:04]}  Kb8 {[%clk 0:00:04]} 70. Kb5 {[%clk 0:00:04]}  Nd5 {[%clk 0:00:05]} 71. b7 {[%clk 0:00:04]}  Nc7+ {[%clk 0:00:03]} 72. Kc6 {[%clk 0:00:04]}  Ne6 {[%clk 0:00:03]} 73. Nc4 {[%clk 0:00:04]}  Nd8+ {[%clk 0:00:03]} 74. Kb6 {[%clk 0:00:05]}  Nxb7 {[%clk 0:00:04]} 1/2-1/2


[Site "https://www.chess.com"]

[Event "Titled Tuesday Blitz December 13 Late 2022"]
[White "Sivakumar, Shaaketh"]
[Black "Svane, Frederik"]
[WhiteFideId "30940176"]
[BlackFideId "12923044"]
[WhiteElo "2573"]
[BlackElo "2845"]
[Result "0-1"]
[Round "02"]
[TimeControl "180+1"]
[Date "2022.12.14"]
[WhiteClock "0:00:13"]
[BlackClock "0:00:19"]

1. d4 {[%clk 0:03:00]}  Nf6 {[%clk 0:02:58]} 2. c4 {[%clk 0:03:00]}  e6 {[%clk 0:02:58]} 3. g3 {[%clk 0:02:57]}  d5 {[%clk 0:02:58]} 4. Nf3 {[%clk 0:02:36]}  dxc4 {[%clk 0:02:56]} 5. Bg2 {[%clk 0:02:36]}  a6 {[%clk 0:02:56]} 6. O-O {[%clk 0:02:32]}  Nc6 {[%clk 0:02:57]} 7. e3 {[%clk 0:02:19]}  Bd7 {[%clk 0:02:56]} 8. Qe2 {[%clk 0:02:14]}  Bd6 {[%clk 0:02:57]} 9. Nbd2 {[%clk 0:02:09]}  b5 {[%clk 0:02:52]} 10. b3 {[%clk 0:02:00]}  cxb3 {[%clk 0:02:49]} 11. axb3 {[%clk 0:01:56]}  O-O {[%clk 0:02:49]} 12. Bb2 {[%clk 0:01:53]}  Nb4 {[%clk 0:02:41]} 13. Rfc1 {[%clk 0:01:47]}  Rc8 {[%clk 0:02:37]} 14. Ne5 {[%clk 0:01:44]}  c5 {[%clk 0:02:32]} 15. dxc5 {[%clk 0:01:39]}  Rxc5 {[%clk 0:02:26]} 16. Rxc5 {[%clk 0:01:32]}  Bxc5 {[%clk 0:02:26]} 17. Ne4 {[%clk 0:01:32]}  Nxe4 {[%clk 0:01:51]} 18. Bxe4 {[%clk 0:01:33]}  Bc8 {[%clk 0:01:51]} 19. Qh5 {[%clk 0:01:18]}  f5 {[%clk 0:01:42]} 20. Rd1 {[%clk 0:00:59]}  Qe8 {[%clk 0:01:32]} 21. Qxe8 {[%clk 0:00:49]}  Rxe8 {[%clk 0:01:33]} 22. Bf3 {[%clk 0:00:48]}  Kf8 {[%clk 0:01:21]} 23. Nd7+ {[%clk 0:00:46]}  Bxd7 {[%clk 0:01:20]} 24. Rxd7 {[%clk 0:00:47]}  Re7 {[%clk 0:01:16]} 25. Rd8+ {[%clk 0:00:46]}  Kf7 {[%clk 0:01:17]} 26. Bh5+ {[%clk 0:00:42]}  g6 {[%clk 0:01:17]} 27. Bf3 {[%clk 0:00:43]}  h5 {[%clk 0:01:09]} 28. Kg2 {[%clk 0:00:41]}  Ra7 {[%clk 0:01:04]} 29. Rh8 {[%clk 0:00:41]}  Nd3 {[%clk 0:00:45]} 30. Bc3 {[%clk 0:00:27]}  b4 {[%clk 0:00:43]} 31. Bd2 {[%clk 0:00:22]}  a5 {[%clk 0:00:41]} 32. Be2 {[%clk 0:00:22]}  Ne5 {[%clk 0:00:39]} 33. f4 {[%clk 0:00:20]}  Ng4 {[%clk 0:00:40]} 34. Bc4 {[%clk 0:00:13]}  Bxe3 {[%clk 0:00:16]} 35. Bxe3 {[%clk 0:00:07]}  Nxe3+ {[%clk 0:00:16]} 36. Kf3 {[%clk 0:00:08]}  Nxc4 {[%clk 0:00:12]} 37. Rh7+ {[%clk 0:00:08]}  Kf6 {[%clk 0:00:13]} 38. Rxa7 {[%clk 0:00:09]}  Nd2+ {[%clk 0:00:13]} 39. Ke2 {[%clk 0:00:08]}  Nxb3 {[%clk 0:00:13]} 40. Kd3 {[%clk 0:00:09]}  g5 {[%clk 0:00:07]} 41. Kc4 {[%clk 0:00:08]}  Nd2+ {[%clk 0:00:07]} 42. Kd3 {[%clk 0:00:08]}  Nf1 {[%clk 0:00:07]} 43. Rxa5 {[%clk 0:00:07]}  Nxh2 {[%clk 0:00:08]} 44. Ke3 {[%clk 0:00:07]}  Nf1+ {[%clk 0:00:06]} 45. Kf2 {[%clk 0:00:06]}  Nd2 {[%clk 0:00:07]} 46. Ra2 {[%clk 0:00:04]}  Ne4+ {[%clk 0:00:06]} 47. Kg2 {[%clk 0:00:05]}  Nc5 {[%clk 0:00:06]} 48. Ra5 {[%clk 0:00:04]}  Nd3 {[%clk 0:00:05]} 49. Rb5 {[%clk 0:00:03]}  gxf4 {[%clk 0:00:06]} 50. gxf4 {[%clk 0:00:03]}  Nxf4+ {[%clk 0:00:07]} 51. Kf3 {[%clk 0:00:04]}  Nd5 {[%clk 0:00:07]} 52. Rb8 {[%clk 0:00:04]}  Ke5 {[%clk 0:00:08]} 53. Rh8 {[%clk 0:00:04]}  Kd4 {[%clk 0:00:08]} 54. Rxh5 {[%clk 0:00:05]}  Kc3 {[%clk 0:00:08]} 55. Rh1 {[%clk 0:00:05]}  b3 {[%clk 0:00:09]} 56. Rc1+ {[%clk 0:00:06]}  Kd2 {[%clk 0:00:09]} 57. Rb1 {[%clk 0:00:05]}  Kc2 {[%clk 0:00:09]} 58. Rf1 {[%clk 0:00:06]}  b2 {[%clk 0:00:09]} 59. Rf2+ {[%clk 0:00:07]}  Kb3 {[%clk 0:00:10]} 60. Re2 {[%clk 0:00:08]}  b1=Q {[%clk 0:00:10]} 61. Rxe6 {[%clk 0:00:08]}  Qf1+ {[%clk 0:00:10]} 62. Kg3 {[%clk 0:00:08]}  Qf4+ {[%clk 0:00:10]} 63. Kg2 {[%clk 0:00:08]}  Qe4+ {[%clk 0:00:10]} 64. Rxe4 {[%clk 0:00:07]}  fxe4 {[%clk 0:00:11]} 65. Kf2 {[%clk 0:00:07]}  Kc2 {[%clk 0:00:11]} 66. Ke2 {[%clk 0:00:08]}  Kc3 {[%clk 0:00:11]} 67. Kf2 {[%clk 0:00:09]}  Kd2 {[%clk 0:00:12]} 68. Kf1 {[%clk 0:00:09]}  e3 {[%clk 0:00:13]} 69. Kg2 {[%clk 0:00:10]}  e2 {[%clk 0:00:13]} 70. Kf2 {[%clk 0:00:11]}  e1=Q+ {[%clk 0:00:14]} 71. Kf3 {[%clk 0:00:11]}  Qe3+ {[%clk 0:00:15]} 72. Kg2 {[%clk 0:00:12]}  Qf4 {[%clk 0:00:15]} 73. Kh3 {[%clk 0:00:12]}  Qg5 {[%clk 0:00:16]} 74. Kh2 {[%clk 0:00:12]}  Ke2 {[%clk 0:00:17]} 75. Kh3 {[%clk 0:00:13]}  Kf2 {[%clk 0:00:18]} 76. Kh2 {[%clk 0:00:13]}  Qg2# {[%clk 0:00:19]} 0-1


[Site "https://www.chess.com"]

[Event "Titled Tuesday Blitz December 13 Late 2022"]
[White "Timmermans, Mark"]
[Black "Sarana, Alexey"]
[WhiteFideId "1026399"]
[BlackFideId "24133795"]
[WhiteElo "2460"]
[BlackElo "2708"]
[Result "0-1"]
[Round "02"]
[TimeControl "180+1"]
[Date "2022.12.13"]
[WhiteClock "0:02:09"]
[BlackClock "0:01:10"]

1. Nf3 {[%clk 0:02:59]}  d5 {[%clk 0:03:00]} 2. c4 {[%clk 0:02:57]}  e6 {[%clk 0:03:00]} 3. e3 {[%clk 0:02:54]}  Nf6 {[%clk 0:02:59]} 4. b3 {[%clk 0:02:54]}  Bd6 {[%clk 0:02:58]} 5. Bb2 {[%clk 0:02:54]}  O-O {[%clk 0:02:58]} 6. Be2 {[%clk 0:02:54]}  Re8 {[%clk 0:02:58]} 7. cxd5 {[%clk 0:02:54]}  exd5 {[%clk 0:02:58]} 8. O-O {[%clk 0:02:55]}  c6 {[%clk 0:02:48]} 9. d3 {[%clk 0:02:54]}  Bf5 {[%clk 0:02:42]} 10. Nbd2 {[%clk 0:02:50]}  h6 {[%clk 0:02:41]} 11. Rc1 {[%clk 0:02:47]}  Nbd7 {[%clk 0:02:41]} 12. a3 {[%clk 0:02:43]}  Qe7 {[%clk 0:02:40]} 13. b4 {[%clk 0:02:42]}  a5 {[%clk 0:02:41]} 14. bxa5 {[%clk 0:02:38]}  Rxa5 {[%clk 0:02:40]} 15. a4 {[%clk 0:02:38]}  Ng4 {[%clk 0:02:01]} 16. Bc3 {[%clk 0:02:32]}  Raa8 {[%clk 0:01:56]} 17. a5 {[%clk 0:02:27]}  h5 {[%clk 0:01:20]} 18. Rb1 {[%clk 0:02:20]}  Nc5 {[%clk 0:01:19]} 19. h3 {[%clk 0:02:16]}  Nxe3 {[%clk 0:01:16]} 20. fxe3 {[%clk 0:02:10]}  Qxe3+ {[%clk 0:01:17]} 21. Rf2 {[%clk 0:02:11]}  Bg3 {[%clk 0:01:18]} 22. Bd4 {[%clk 0:02:11]}  Bxf2+ {[%clk 0:01:13]} 23. Kf1 {[%clk 0:02:09]}  Qxe2+ {[%clk 0:01:10]} 0-1


[Site "https://www.chess.com"]

[Event "Titled Tuesday Blitz December 13 Late 2022"]
[White "Toncheva, Nadya"]
[Black "Riehle, Marco"]
[WhiteFideId "2924056"]
[BlackFideId "12904392"]
[WhiteElo "2527"]
[BlackElo "2775"]
[Result "1-0"]
[Round "02"]
[TimeControl "180+1"]
[Date "2022.12.14"]
[WhiteClock "0:01:29"]
[BlackClock "0:02:07"]

1. d4 {[%clk 0:03:00]}  d5 {[%clk 0:02:57]} 2. c4 {[%clk 0:03:00]}  e6 {[%clk 0:02:53]} 3. Nc3 {[%clk 0:03:00]}  c5 {[%clk 0:02:49]} 4. cxd5 {[%clk 0:03:00]}  cxd4 {[%clk 0:02:48]} 5. Qa4+ {[%clk 0:03:00]}  Bd7 {[%clk 0:02:48]} 6. Qxd4 {[%clk 0:03:01]}  exd5 {[%clk 0:02:45]} 7. Qxd5 {[%clk 0:03:01]}  Nf6 {[%clk 0:02:42]} 8. Qxb7 {[%clk 0:03:02]}  Nc6 {[%clk 0:02:38]} 9. Qb3 {[%clk 0:03:03]}  Nd4 {[%clk 0:02:38]} 10. Qd1 {[%clk 0:02:54]}  Bf5 {[%clk 0:02:38]} 11. e4 {[%clk 0:02:40]}  Nxe4 {[%clk 0:02:37]} 12. Bd3 {[%clk 0:01:45]}  Nxc3 {[%clk 0:02:12]} 13. bxc3 {[%clk 0:01:46]}  Nf3+ {[%clk 0:02:11]} 14. Qxf3 {[%clk 0:01:30]}  Bxd3 {[%clk 0:02:08]} 15. Qc6+ {[%clk 0:01:30]}  Ke7 {[%clk 0:02:08]} 16. Ba3+ {[%clk 0:01:29]}  Qd6 {[%clk 0:02:07]} 1-0


[Site "https://www.chess.com"]

[Event "Titled Tuesday Blitz December 13 Late 2022"]
[White "Urbina Perez, Juan Antonio"]
[Black "Stanisz, Patryk"]
[WhiteFideId "2217368"]
[BlackFideId "1123106"]
[WhiteElo "2197"]
[BlackElo "2069"]
[Result "0-1"]
[Round "02"]
[TimeControl "180+1"]
[Date "2022.12.14"]
[WhiteClock "0:00:01"]
[BlackClock "0:00:18"]

1. e4 {[%clk 0:02:55]}  c5 {[%clk 0:02:59]} 2. Nf3 {[%clk 0:02:53]}  Nc6 {[%clk 0:02:59]} 3. Bb5 {[%clk 0:02:52]}  g6 {[%clk 0:02:59]} 4. Bxc6 {[%clk 0:02:50]}  dxc6 {[%clk 0:02:58]} 5. d3 {[%clk 0:02:50]}  Bg7 {[%clk 0:02:58]} 6. h3 {[%clk 0:02:44]}  Nf6 {[%clk 0:02:58]} 7. Nc3 {[%clk 0:02:43]}  Nd7 {[%clk 0:02:57]} 8. Be3 {[%clk 0:02:44]}  e5 {[%clk 0:02:56]} 9. Qd2 {[%clk 0:02:45]}  h6 {[%clk 0:02:56]} 10. O-O {[%clk 0:02:44]}  Qe7 {[%clk 0:02:49]} 11. a3 {[%clk 0:02:44]}  Nf8 {[%clk 0:02:39]} 12. b4 {[%clk 0:02:43]}  b6 {[%clk 0:02:36]} 13. bxc5 {[%clk 0:02:41]}  b5 {[%clk 0:02:37]} 14. a4 {[%clk 0:02:38]}  b4 {[%clk 0:02:36]} 15. Na2 {[%clk 0:02:36]}  a5 {[%clk 0:02:36]} 16. c3 {[%clk 0:02:36]}  b3 {[%clk 0:02:25]} 17. Nc1 {[%clk 0:02:33]}  Rb8 {[%clk 0:02:24]} 18. Rb1 {[%clk 0:02:31]}  Be6 {[%clk 0:01:55]} 19. c4 {[%clk 0:02:29]}  Nd7 {[%clk 0:01:51]} 20. Rxb3 {[%clk 0:02:21]}  f5 {[%clk 0:01:46]} 21. exf5 {[%clk 0:02:12]}  gxf5 {[%clk 0:01:43]} 22. Rxb8+ {[%clk 0:02:10]}  Nxb8 {[%clk 0:01:41]} 23. Qxa5 {[%clk 0:02:09]}  O-O {[%clk 0:01:36]} 24. Ne2 {[%clk 0:01:37]}  f4 {[%clk 0:01:34]} 25. Bd2 {[%clk 0:01:34]}  Kh8 {[%clk 0:01:24]} 26. Bc3 {[%clk 0:01:33]}  e4 {[%clk 0:01:20]} 27. Bxg7+ {[%clk 0:01:32]}  Qxg7 {[%clk 0:01:21]} 28. dxe4 {[%clk 0:01:08]}  Bxh3 {[%clk 0:01:16]} 29. Qc3 {[%clk 0:01:07]}  Rf6 {[%clk 0:01:14]} 30. Ne1 {[%clk 0:00:53]}  Bxg2 {[%clk 0:01:12]} 31. Nxg2 {[%clk 0:00:49]}  f3 {[%clk 0:01:12]} 32. Ng3 {[%clk 0:00:48]}  fxg2 {[%clk 0:01:13]} 33. Kxg2 {[%clk 0:00:48]}  Nd7 {[%clk 0:01:12]} 34. Qe3 {[%clk 0:00:34]}  Ne5 {[%clk 0:01:07]} 35. a5 {[%clk 0:00:22]}  Nxc4 {[%clk 0:01:04]} 36. Qb3 {[%clk 0:00:20]}  Nd2 {[%clk 0:01:01]} 37. Qb8+ {[%clk 0:00:15]}  Rf8 {[%clk 0:01:01]} 38. Qd6 {[%clk 0:00:15]}  Nxf1 {[%clk 0:00:58]} 39. Kxf1 {[%clk 0:00:16]}  Qf6 {[%clk 0:00:50]} 40. Qxf6+ {[%clk 0:00:13]}  Rxf6 {[%clk 0:00:51]} 41. Nf5 {[%clk 0:00:14]}  Kh7 {[%clk 0:00:35]} 42. Nd6 {[%clk 0:00:11]}  Rf8 {[%clk 0:00:35]} 43. Ke2 {[%clk 0:00:08]}  Ra8 {[%clk 0:00:35]} 44. Nc4 {[%clk 0:00:08]}  h5 {[%clk 0:00:33]} 45. f4 {[%clk 0:00:08]}  Kg6 {[%clk 0:00:33]} 46. Kf3 {[%clk 0:00:08]}  Rb8 {[%clk 0:00:31]} 47. Ne5+ {[%clk 0:00:05]}  Kf6 {[%clk 0:00:28]} 48. Nxc6 {[%clk 0:00:06]}  Rb3+ {[%clk 0:00:27]} 49. Kg2 {[%clk 0:00:06]}  Ra3 {[%clk 0:00:27]} 50. e5+ {[%clk 0:00:05]}  Kf5 {[%clk 0:00:27]} 51. Kh2 {[%clk 0:00:04]}  Ke6 {[%clk 0:00:19]} 52. Kg2 {[%clk 0:00:01]}  Kd5 {[%clk 0:00:18]} 53. Nb4+ {[%clk 0:00:01]}  Kxc5 {[%clk 0:00:18]} 0-1


[Site "https://www.chess.com"]